[Event "Czech Open-GM 2022"]
[Site "Pardubice"]
[Date "2022.07.27"]
[Round "6.31"]
[White "Redzisz, Michal"]
[Black "Swicarz, Maciej"]
[Result "0-1"]
[ECO "A46"]
[WhiteElo "2232"]
[BlackElo "2335"]
[Annotator "TA"]
[PlyCount "88"]
[EventDate "2022.07.22"]
[EventType "swiss"]
[EventCountry "CZE"]
[SourceTitle "playchess.com"]
[Source "ChessBase"]
[SourceQuality "1"]
[TimeControl "40/5400+30:1800+30"]

{[%evp 14,88,4,19,41,-4,-3,-22,-10,-22,-10,-12,-29,-27,-19,-27,-13,-38,-21,-40,0,-48,-44,-44,-41,-48,-54,-54,-38,-43,-39,-67,-56,-70,-54,-56,-53,-65,-23,-71,-13,-16,-21,-62,-55,-64,-49,-43,-55,-62,-23,-23,-22,-42,-37,-106,-102,-131,-124,-106,-106,-369,-177,-166,-157,-288,-202,-332,-329,-383,-379,-383,-379,-407,-398,-533,-514]} 1. d4 {[%emt 0:00:16]} Nf6 {[%emt 0:00:11]} 2. Nf3 {[%emt 0:01:14]} d5 {[%emt 0:00:03]} 3. c4 {[%emt 0:01:07]} e6 {[%emt 0:00:08]} 4. g3 {[%emt 0:00:13]} dxc4 {[%emt 0:00:13]} 5. Qa4+ {[%emt 0:00:54]} Nbd7 {[%emt 0:00:34]} 6. Qxc4 {[%emt 0:00:09]} c5 {[%emt 0:00:58]} 7. Bg2 {[%emt 0:00:04]} a6 {[%emt 0:00:24]} 8. Qc2 {[%emt 0:03:07]} Qb6 {[%emt 0:06:04] E03: Open Catalan: 5 Qa4+ Nbd7 6 Qxc4.} 9. e3 {[%emt 0:07:35] [#]} Qa7 $146 {[%emt 0:04:19]} (9... Qb5 10. Nc3 Qc6 11. O-O $16) ({Predecessor:} 9... cxd4 10. exd4 Bd6 11. O-O O-O 12. Na3 Qc7 13. Qxc7 Bxc7 14. Bg5 b5 15. Rac1 Ra7 16. Nc2 {½-½ (25) Atalik,S (2474)-Nitish,B (2449) Novi Sad 2022}) 10. a4 {[%emt 0:01:18]} b6 {[%emt 0:01:51] The position is equal.} 11. Nc3 {[%emt 0:07:51]} Bb7 {[%emt 0:00:07]} 12. O-O {[%emt 0:00:03]} Rc8 {[%emt 0:00:08]} 13. Rd1 {[%emt 0:06:21]} cxd4 {[%emt 0:03:10]} 14. exd4 {[%emt 0:10:18]} Bb4 {[%emt 0:20:24]} 15. Qe2 (15. Qb3 $5 {[%cal Rb3b4]} a5 16. Bf4 $11) 15... O-O ({Much weaker is} 15... Bxc3 16. bxc3 O-O 17. c4 $11) 16. Bd2 {[%emt 0:08:53][%cal Oc3b5]} Bxc3 {[%emt 0:02:54]} 17. Bxc3 {[%emt 0:01:57]} (17. bxc3 $11 Bd5 18. Rdc1) 17... Qa8 {[%emt 0:00:25]} 18. Rac1 {[%emt 0:02:58]} Rfd8 {[%emt 0:02:45]} 19. Ne1 {[%emt 0:10:35]} Bxg2 {[%emt 0:02:11]} 20. Nxg2 {[%emt 0:00:03]} Nd5 {[%emt 0:00:10]} 21. Bd2 {[%emt 0:00:41]} h6 {[%emt 0:00:32]} 22. h4 {[%emt 0:01:23]} N7f6 {[%emt 0:04:05]} 23. Ne1 {[%emt 0:04:54]} Rxc1 {[%emt 0:01:21]} 24. Rxc1 {[%emt 0:00:19]} Ne7 {[%emt 0:01:09] Pair of Knights!} 25. Qf3 {[%emt 0:04:36]} Qe4 {[%emt 0:03:04]} 26. Be3 {[%emt 0:02:48]} (26. Qxe4 $11 Nxe4 27. Be3) 26... Nf5 {[%emt 0:07:20]} (26... Qg6 $17) 27. Qxe4 $11 {[%emt 0:05:00]} Nxe4 {[%emt 0:00:03]} 28. Kg2 {[%emt 0:00:01] [#]} Nexg3 $1 {[%emt 0:02:27] Black is more active.} 29. Rc6 $1 {[%emt 0:01:43]} Nxe3+ {[%emt 0:01:59]} 30. fxe3 $15 {[%mdl 4096] Endgame KRN-KRN} Nf5 {[%csl LRe3,LRh4]} 31. Kf2 {[%emt 0:02:17]} Rb8 {[%emt 0:05:39]} ({Of course not} 31... Nxh4 32. Rxb6 e5 33. Rxa6 $11) (31... e5 $5 {[%cal Re5d4]} 32. Nd3 exd4 $15) 32. Nf3 {[%emt 0:00:21]} Ne7 {[%emt 0:02:51]} 33. Rc7 {[%emt 0:01:32]} Nd5 {[%emt 0:00:03]} 34. Ra7 {[%emt 0:00:01]} (34. Rc6 $15) 34... Rc8 $17 {[%emt 0:02:11]} 35. e4 {[%emt 0:00:01]} Rc2+ {[%emt 0:00:33]} 36. Kg3 {[%emt 0:00:02] [#]} Nf6 $1 {[%emt 0:01:05]} 37. e5 {[%emt 0:00:02][%mdl 8192] Now White is beyond hope.} (37. Ne5 $17) 37... Nd5 {[%emt 0:00:38]} (37... Nh5+ $142 38. Kh3 (38. Kg4 $2 g6 $19) 38... a5) 38. Rxa6 {[%emt 0:00:23]} Rxb2 {[%emt 0:00:27]} 39. Ra8+ {[%emt 0:00:01]} Kh7 {[%emt 0:00:08]} 40. Ra7 {[%emt 0:01:19]} (40. h5 $142) 40... Kg6 $19 {[%emt 0:02:20]} 41. a5 {[%emt 0:29:50]} bxa5 {[%emt 0:36:28]} 42. Rxa5 {[%emt 0:00:24]} Ne3 {[%emt 0:00:43]} 43. Kf4 {[%emt 0:01:01]} Nf5 44. Ra4 Rf2 {[%emt 0:05:17] Weighted Error Value: White=0.39/Black=0.15 (very precise)} 0-1

[Event "Czech Open-GM 2022"]
[Site "Pardubice"]
[Date "2022.07.27"]
[Round "6.32"]
[White "Nurkiewicz, Maciej"]
[Black "Delgerdalai, Bayarjavkhlan"]
[Result "1-0"]
[ECO "B90"]
[WhiteElo "2332"]
[BlackElo "2209"]
[Annotator "TA"]
[PlyCount "71"]
[EventDate "2022.07.22"]
[EventType "swiss"]
[EventCountry "CZE"]
[SourceTitle "playchess.com"]
[Source "ChessBase"]
[SourceQuality "1"]
[TimeControl "40/5400+30:1800+30"]

{[%evp 13,71,17,14,16,2,13,16,14,17,26,42,34,64,63,58,31,37,23,57,12,124,122,186,168,327,255,262,217,216,214,202,203,184,191,207,-7,253,260,306,306,311,291,380,366,366,362,1276,1280,1321,1512,1483,1419,1237,1043,1646,1609,29967,29965,29980,29981]} 1. e4 {[%emt 0:00:06]} c5 {[%emt 0:00:06]} 2. Nf3 {[%emt 0:00:05]} d6 {[%emt 0:00:05]} 3. d4 {[%emt 0:00:05]} cxd4 {[%emt 0:00:06]} 4. Nxd4 {[%emt 0:00:05]} Nf6 {[%emt 0:00:05]} 5. Nc3 {[%emt 0:00:06]} a6 {[%emt 0:00:05]} 6. Be3 {[%emt 0:00:10]} e5 {[%emt 0:00:08]} 7. Nb3 {[%emt 0:00:05]} Be7 {[%emt 0:00:23]} 8. h3 {[%emt 0:00:06] B90: Sicilian Najdorf: Unusual White 6th moves, 6 Be3 Ng4 and 6 Be3 e5.} Be6 {[%emt 0:02:43]} 9. f4 {[%emt 0:00:19]} exf4 {[%emt 0:01:17]} 10. Bxf4 {[%emt 0:00:06] The position is equal.} Nc6 {[%emt 0:03:11]} 11. Qe2 {[%emt 0:00:08]} Ne5 {[%emt 0:07:13]} 12. O-O-O {[%emt 0:02:29] Bxe5 is the strong threat.} Qc7 {[%emt 0:04:08]} 13. g4 {[%emt 0:08:16]} h6 {[%emt 0:02:27] [#]} 14. Nd5 $146 {[%emt 0:03:34]} ({Predecessor:} 14. Kb1 b5 15. Qg2 Nfd7 16. g5 h5 17. Nd5 Bxd5 18. exd5 O-O 19. Bd3 g6 20. Rhe1 {0-1 (52) Kacprzak,K (2226)-Kyc,J (2250) Katowice 2021}) 14... Nxd5 {[%emt 0:03:15]} 15. exd5 {[%emt 0:00:05]} Bd7 {[%emt 0:00:10]} 16. Rg1 {[%emt 0:08:04]} O-O-O {[%emt 0:11:05]} (16... O-O $11) 17. Rg3 $36 {[%emt 0:02:25][%mdl 2048] And now Rc3 would win. White has strong initiative.} Bb5 {[%emt 0:06:42]} (17... Kb8 $16) 18. Qe4 $18 {[%emt 0:05:45]} Qd7 $2 {[%emt 0:09:38]} (18... Kb8) 19. Bxb5 {[%emt 0:05:50]} Qxb5 {[%emt 0:03:47]} 20. Bxe5 {[%emt 0:00:39]} dxe5 {[%emt 0:00:28]} 21. Rc3+ {[%emt 0:02:55]} ({But not} 21. Qxe5 Bd6 22. Rc3+ Kb8 23. Qxg7 Bf4+ 24. Kb1 Qe8) 21... Kb8 {[%emt 0:00:54]} 22. Qxe5+ {[%emt 0:00:13]} Bd6 {[%emt 0:00:07]} 23. Qxg7 {[%emt 0:00:21]} Qe2 {[%emt 0:06:59] Threatens to win with ...Be5.} 24. Rcd3 $2 {[%emt 0:02:26]} ({Don't blunder} 24. Qxf7 $2 Rdf8 25. Nd4 Qxd1+ 26. Kxd1 Rxf7 $19) ({White should play} 24. Qd4 $18) 24... Rc8 $2 {[%emt 0:03:32][%mdl 8192] [#] A mistake that costs the game.} (24... Be5 $11 {and Black has nothing to worry.} 25. Qxf7 Rhf8) 25. Nd4 $1 {[%emt 0:04:57]} Qe7 {[%emt 0:13:41]} 26. Nf5 {[%emt 0:05:55][%csl LRe7,LRh6]} Qe2 {[%emt 0:02:00][%csl Gc8][%cal Re2c2]} 27. c3 {[%emt 0:01:14]} Bf4+ {[%emt 0:04:46]} 28. Kb1 {[%emt 0:02:42]} Be5 {[%emt 0:02:35]} 29. Qxf7 {[%emt 0:01:08]} Rxc3 $2 {[%emt 0:02:07]} (29... h5 30. Nd4 Bxd4) 30. bxc3 {[%emt 0:02:43]} Bxc3 {[%emt 0:00:15] [#]} 31. Rxc3 $1 {[%emt 0:00:27] White threatens Rdc1 and mate.} Qxd1+ {[%emt 0:00:07]} 32. Rc1 {[%emt 0:00:16]} Qd3+ {[%emt 0:00:28]} 33. Ka1 {[%emt 0:00:07]} Ka8 {[%emt 0:05:44]} 34. d6 {[%emt 0:02:19][%cal Bd5d6,Bd6d7][%mdl 32] Qc7 would kill now.} Qd2 {[%emt 0:01:04]} 35. Qc7 {[%emt 0:01:09]} Re8 {[%emt 0:00:33]} 36. d7 {[%emt 0:01:07] Weighted Error Value: White=0.27 (precise) /Black=0.80} 1-0

[Event "Czech Open-GM 2022"]
[Site "Pardubice"]
[Date "2022.07.27"]
[Round "6.33"]
[White "Vojta, Jakub"]
[Black "Bujnoch, Radek"]
[Result "1/2-1/2"]
[ECO "C65"]
[WhiteElo "2326"]
[BlackElo "2191"]
[Annotator "TA"]
[PlyCount "62"]
[EventDate "2022.07.22"]
[EventType "swiss"]
[EventCountry "CZE"]
[SourceTitle "playchess.com"]
[Source "ChessBase"]
[SourceQuality "1"]
[TimeControl "40/5400+30:1800+30"]

{[%evp 11,62,6,11,0,0,0,0,4,4,-20,0,0,3,5,6,5,9,-2,41,22,37,25,28,12,19,0,27,33,70,54,80,39,40,22,0,-23,-28,-15,-16,-31,-20,-20,0,0,0,0,0,0,70,0,0,-12,-12]} 1. e4 {[%emt 0:00:02]} e5 {[%emt 0:00:04]} 2. Nf3 {[%emt 0:00:26]} Nc6 {[%emt 0:00:06]} 3. Bb5 {[%emt 0:00:16]} Nf6 {[%emt 0:00:06]} 4. d3 {[%emt 0:00:27][%cal Bd2d3,Bd3d4][%mdl 32]} Bc5 {[%emt 0:00:23]} 5. O-O {[%emt 0:00:28]} Nd4 {[%emt 0:00:14]} 6. Nxd4 {[%emt 0:00:50]} Bxd4 {[%emt 0:00:06]} 7. c3 {[%emt 0:02:05] C65: Ruy Lopez: Berlin Defence (3...Nf6), unusual lines and 4 0-0 Bc5.} Bb6 {[%emt 0:00:06]} 8. d4 {[%emt 0:08:43] 8.Na3 is the modern continuation.} O-O {[%emt 0:00:14]} 9. Bg5 {[%emt 0:15:49]} d6 {[%emt 0:05:35]} 10. Qd3 {[%emt 0:01:42]} Qe7 {[%emt 0:16:31]} 11. Nd2 {[%emt 0:03:09]} h6 {[%emt 0:02:29]} 12. Bh4 {[%emt 0:00:22] [#]} g5 $146 {[%emt 0:11:36]} ({Predecessor:} 12... c6 13. Ba4 Bg4 14. Bc2 g5 15. f3 Bh5 16. Bf2 Bg6 17. Nc4 Bc7 18. Qd2 d5 19. Nxe5 Bxe5 20. dxe5 Qxe5 {1-0 (33) Pourkashiyan,A (2308)-Qiu,T (2289) Manila 2010}) 13. Bg3 {[%emt 0:00:07]} Nh5 {[%emt 0:01:28]} 14. Nc4 {[%emt 0:08:06][%cal Rd4e5]} f6 {[%emt 0:11:31]} 15. Ba4 {[%emt 0:07:53][%cal Bb5a4,Ba4b3,Bb3c4][%mdl 32]} Be6 {[%emt 0:08:17]} 16. Bb3 {[%emt 0:05:38]} Bxc4 {[%emt 0:08:42]} 17. Bxc4+ {[%emt 0:00:36]} Kh8 {[%emt 0:01:34]} 18. Rad1 {[%emt 0:00:34]} Rad8 {[%emt 0:01:26]} 19. Rfe1 {[%emt 0:02:53]} Ng7 {[%emt 0:03:32]} 20. b4 {[%emt 0:13:19]} f5 {[%emt 0:01:56] [#] ...f4 is the strong threat.} 21. exf5 {[%emt 0:01:07]} Nxf5 {[%emt 0:00:02]} 22. Kh1 {[%emt 0:05:54][%cal Rd4e5]} Nxg3+ {[%emt 0:04:29]} 23. fxg3 {[%emt 0:01:49]} d5 {[%emt 0:02:09]} 24. Bb3 {[%emt 0:01:36]} e4 {[%emt 0:00:11]} 25. Qe2 {[%emt 0:00:30]} c6 {[%emt 0:01:07]} (25... Kg7 {keeps more tension.} 26. Rf1 Qe6 27. Kg1 c6) 26. Rf1 {[%emt 0:00:34]} Rxf1+ {[%emt 0:07:35]} (26... a5 {seems wilder.} 27. b5 Kg7 28. bxc6 bxc6 29. Qa6 Rxf1+ 30. Rxf1 Rf8) 27. Rxf1 {[%emt 0:00:05]} Rf8 {[%emt 0:01:24]} 28. Rxf8+ {[%emt 0:01:00]} Qxf8 {[%emt 0:00:04]} 29. Kg1 {[%emt 0:00:28]} Qf7 {[%emt 0:00:54]} (29... Qe7 $11) 30. Bd1 {[%emt 0:01:24]} (30. Qxe4 $1 $14 a5 31. a3 (31. Qe5+ Kg8 $14)) 30... Kg7 {[%emt 0:02:11]} 31. Qf2 {[%emt 0:01:55]} a5 {[%emt 0:02:47] Weighted Error Value: White=0.14 (very precise) /Black=0.16 (very precise)} 1/2-1/2

[Event "Czech Open-GM 2022"]
[Site "Pardubice"]
[Date "2022.07.27"]
[Round "6.34"]
[White "Budzisz, Adrian"]
[Black "Bhambure, Shantanu"]
[Result "0-1"]
[ECO "B52"]
[WhiteElo "2152"]
[BlackElo "2320"]
[Annotator "TA"]
[PlyCount "86"]
[EventDate "2022.07.22"]
[EventType "swiss"]
[EventCountry "CZE"]
[SourceTitle "playchess.com"]
[Source "ChessBase"]
[SourceQuality "1"]
[TimeControl "40/5400+30:1800+30"]

{[%evp 16,86,0,0,10,-4,-4,-4,-16,-32,-39,-39,-37,-39,-39,-41,-20,-24,-17,-22,-17,-31,-9,-31,-10,-20,0,-72,-17,-93,-83,-81,-89,-69,-17,-25,-25,-31,-30,-104,-99,-168,-92,-322,-319,-384,-279,-281,-279,-264,-244,-214,-196,-197,-205,-201,-185,-443,-449,-422,-402,-710,-666,-605,-605,-732,-651,-597,-623,-600,-579,-645,-508]} 1. e4 {[%emt 0:00:06]} c5 {[%emt 0:00:47]} 2. Nf3 {[%emt 0:00:26]} d6 {[%emt 0:00:07]} 3. Bb5+ {[%emt 0:00:08]} Bd7 {[%emt 0:00:06]} 4. Bxd7+ {[%emt 0:00:15]} Nxd7 {[%emt 0:00:07]} 5. O-O {[%emt 0:00:08]} Ngf6 {[%emt 0:00:10]} 6. Re1 {[%emt 0:00:12]} e6 {[%emt 0:00:21]} 7. c3 {[%emt 0:00:39]} Be7 {[%emt 0:00:14]} 8. d4 {[%emt 0:00:19]} O-O $1 {[%emt 0:00:07][%mdl 4] is now more promising than 8...cxd4.} 9. e5 {[%emt 0:01:29]} Ne8 {[%emt 0:00:14] B52: Sicilian: Moscow Variation with 3...Bd7.} 10. Nbd2 {[%emt 0:02:49]} cxd4 {[%emt 0:01:45] [#]} 11. exd6 $146 {[%emt 0:01:56]} ({Predecessor:} 11. cxd4 dxe5 12. dxe5 Nc7 13. Ne4 Nd5 14. a3 Nc5 15. Nxc5 Bxc5 16. Qe2 Rc8 17. Qe4 {½-½ (57) Pranav,V (2481)-Urbina Perez,J (2274) Chess.com INT 2022}) 11... Nxd6 {[%emt 0:25:02] The position is equal.} 12. Ne4 {[%emt 0:01:34]} Nxe4 {[%emt 0:03:01]} 13. Rxe4 {[%emt 0:00:08]} Bf6 {[%emt 0:13:02]} 14. Nxd4 {[%emt 0:07:25]} Nc5 {[%emt 0:00:46]} 15. Re1 {[%emt 0:00:05]} Qc7 {[%emt 0:11:24]} (15... Bxd4 $5 16. cxd4 Na6 $11) 16. Be3 {[%emt 0:00:56]} Rfd8 {[%emt 0:00:42]} 17. Qe2 {[%emt 0:00:28]} a6 {[%emt 0:01:30]} 18. Rad1 {[%emt 0:05:16]} Rac8 {[%emt 0:02:23]} 19. g3 {[%emt 0:04:14]} b5 {[%emt 0:01:35]} 20. h4 {[%emt 0:02:28]} Qb7 {[%emt 0:03:38]} 21. f3 {[%emt 0:04:31]} (21. Bg5 $11) 21... Rd5 {[%emt 0:05:49]} ({Black should play} 21... b4 $17 {And now ...bxc3 would win.} 22. c4 Na4) 22. Nc2 {[%emt 0:10:23]} (22. Nb3 $11 {keeps the balance.} Na4 23. Rxd5 Qxd5 24. Rd1) 22... Na4 $17 {[%emt 0:01:35] [#] aiming for ...Rxd1. Black is more active.} 23. Rxd5 {[%emt 0:01:44]} Qxd5 {[%emt 0:00:13]} 24. Nb4 {[%emt 0:00:07][%csl LRa6,LRd5]} Qb7 {[%emt 0:00:26]} (24... Qc4 $15 25. Qxc4 (25. Nxa6 Nxb2 26. Qxb2 Bxc3 $17) 25... bxc4) 25. Nd3 {[%emt 0:01:25]} Rd8 {[%emt 0:01:44]} 26. Nf2 {[%emt 0:03:56]} b4 {[%emt 0:11:46]} 27. Ne4 {[%emt 0:04:00]} (27. cxb4 $11 Qxb4 28. Kf1) 27... bxc3 {[%emt 0:02:17]} 28. b3 {[%emt 0:06:35]} (28. bxc3 $17 {is a better defense.} Nxc3 29. Nxc3 Bxc3 30. Rd1 Rxd1+ 31. Qxd1) 28... Nb2 {[%emt 0:02:19]} (28... Nb6 $19 29. Bc5 Nd5) 29. Nxf6+ $2 {[%emt 0:04:27] Loses the game.} (29. Rc1 $17) 29... gxf6 $19 {[%emt 0:00:04]} 30. Bh6 {[%emt 0:00:27]} Qd5 {[%emt 0:03:05]} 31. Rc1 {[%emt 0:03:27]} Nd3 {[%emt 0:01:16][%cal Bb2d3,Bd3e5,Be5g4,Bg4h6,Bh6f5,Bf5d4,Bd4f5][%mdl 32]} 32. Rc2 {[%emt 0:00:45]} Rc8 {[%emt 0:02:03]} 33. a3 {[%emt 0:03:06] Prevents Nb4.} Kh8 {[%emt 0:02:42]} 34. Kg2 {[%emt 0:02:21]} Ne5 {[%emt 0:00:43]} 35. b4 {[%emt 0:02:24]} Rc4 {[%emt 0:00:44]} 36. Qe3 $2 {[%emt 0:01:44]} (36. h5 {might work better.}) 36... Ng4 {[%emt 0:01:15]} 37. Qc1 {[%emt 0:00:01]} Kg8 {[%emt 0:01:05]} 38. Rxc3 {[%emt 0:00:57]} (38. Be3 $142 Ne5 39. Qf1) 38... Rxc3 {[%emt 0:01:03] Black is clearly winning.} 39. Qxc3 {[%emt 0:00:02] [#] White threatens Qc8+ and mate.} Nxh6 {[%emt 0:00:16]} 40. Qxf6 {[%emt 0:00:05]} Qd2+ {[%emt 0:00:43]} 41. Kh3 {[%emt 0:30:25]} Nf5 {[%emt 0:30:44] Threatens to win with ...h6.} 42. g4 {[%emt 0:00:47]} Nd4 {[%emt 0:00:00]} 43. g5 {[%emt 0:00:00]} Nf5 {[%emt 0:00:00] Weighted Error Value: White=0.49/Black=0.19 (very precise)} 0-1

[Event "Czech Open-GM 2022"]
[Site "Pardubice"]
[Date "2022.07.27"]
[Round "6.35"]
[White "Frank, Adam"]
[Black "Wong, Gengchun"]
[Result "1-0"]
[ECO "B96"]
[WhiteElo "2313"]
[BlackElo "2114"]
[Annotator "TA"]
[PlyCount "63"]
[EventDate "2022.07.22"]
[EventType "swiss"]
[EventCountry "CZE"]
[SourceTitle "playchess.com"]
[Source "ChessBase"]
[SourceQuality "1"]
[TimeControl "40/5400+30:1800+30"]

{[%evp 16,63,18,12,7,12,42,6,33,43,74,68,57,41,77,56,322,326,288,308,334,332,324,286,258,232,340,269,254,240,249,0,0,0,0,-85,-92,-171,0,-57,-46,-46,0,0,0,0,29997,29998,29998,29999]} 1. e4 {[%emt 0:00:03]} c5 {[%emt 0:00:03]} 2. Nf3 {[%emt 0:00:03]} d6 {[%emt 0:00:04]} 3. d4 {[%emt 0:00:03]} cxd4 {[%emt 0:00:03]} 4. Nxd4 {[%emt 0:00:04]} Nf6 {[%emt 0:00:05]} 5. Nc3 {[%emt 0:00:03]} a6 {[%emt 0:00:12]} 6. Bg5 {[%emt 0:00:05]} e6 {[%emt 0:00:05]} 7. f4 {[%emt 0:00:03]} h6 {[%emt 0:00:04]} 8. Bh4 {[%emt 0:00:09]} Qb6 {[%emt 0:00:04]} 9. a3 {[%emt 0:01:19]} Be7 {[%emt 0:00:06][%cal Of6e4] B96: Sicilian Najdorf: 6 Bg5 e6 7 f4, lines other than 7...Qb6 and 7...Be7.} (9... Qxb2 $2 10. Na4 Qxa1 11. Qxa1 $18) 10. Bf2 {[%emt 0:04:03][%cal Od4e6] aiming for Nxe6!} Qc7 {[%emt 0:00:04]} (10... Qxb2 $2 11. Na4 Qxa1 12. Qxa1 $18) 11. Qe2 {[%emt 0:07:31]} Nbd7 {[%emt 0:02:24] The position is equal.} 12. O-O-O {[%emt 0:00:12]} b5 {[%emt 0:03:22]} 13. g4 $1 {[%emt 0:04:38] White is more active.} Rb8 {[%emt 0:33:38]} 14. h4 {[%emt 0:28:52] [#] Inhibits g5.} Nc5 $146 {[%emt 0:19:13]} ({Predecessor:} 14... b4 15. axb4 Rxb4 16. Rh3 g6 17. g5 hxg5 18. hxg5 Rxh3 19. Bxh3 Nh5 20. Be3 Nb6 {0-1 (55) Pour Agha Bala,A (2319)-Yakubboev,N (2549) Konya 2018}) 15. Bg2 {[%emt 0:06:26] Black must now prevent e5.} Bd7 $2 {[%emt 0:21:37][%mdl 8192]} (15... h5 $1 $14) 16. e5 $18 {[%emt 0:03:34]} (16. g5 Ng8 17. b4 Nb7 $16) 16... dxe5 {[%emt 0:00:18]} 17. fxe5 {[%emt 0:00:12]} Nh7 {[%emt 0:00:22] [#]} 18. Nf5 $1 {[%emt 0:03:49][%mdl 512]} exf5 {[%emt 0:02:01]} 19. Nd5 {[%emt 0:00:05]} Qc8 {[%emt 0:07:01]} 20. Rh3 {[%emt 0:03:10][%cal Bh1h3,Bh3c3,Bc3c7][%mdl 32]} Ne4 {[%emt 0:03:52]} (20... fxg4 $2 21. Nxe7 gxh3 22. Nxc8 Rxc8 23. Bxc5 Rxc5 24. Qf2 Rxe5 25. Qg3 $18) (20... b4 {is a better defense.}) 21. Bxe4 {[%emt 0:04:09]} fxe4 {[%emt 0:00:39] [#]} 22. Rc3 $1 {[%emt 0:00:04]} Qd8 {[%emt 0:00:27] [#] And now ...0-0 would win.} 23. Nxe7 {[%emt 0:23:51]} (23. e6 fxe6 24. Nxe7 (24. Nc7+ Kf7 $15) 24... Qxe7 $17) (23. Nc7+ $1 $18 Kf8 24. Qxe4 (24. e6 fxe6 25. Qxe4 Kf7 $16)) 23... Qxe7 $11 {[%emt 0:00:35]} 24. Rc7 {[%emt 0:00:29]} O-O {[%emt 0:04:41][%cal Od7g4] Threatens to win with ...Bxg4!} 25. Rdxd7 {[%emt 0:02:42]} (25. Rcxd7 $11 {was the only way to keep the balance.} Qxe5 26. Be3) 25... Qxe5 $17 {[%emt 0:00:05]} 26. Bc5 {[%emt 0:00:03]} (26. Rc5 $17 Qh2 27. g5) 26... Rfc8 $2 {[%emt 0:00:11]} ({Black should play} 26... Nf6 $19 27. Bxf8 (27. Re7 $2 Qf4+ 28. Qd2 Qf1+ 29. Qd1 Qxd1+ 30. Kxd1 Rbd8+ 31. Ke2 Nd5 $19) 27... Nxd7 28. Rxd7 Qf4+ 29. Kb1 Kxf8) 27. Bd4 {[%emt 0:03:28]} (27. Bd6 $11 Qe6 28. Ra7 (28. Rxf7 $2 Rxc7 29. Bxc7 Rc8 $19)) 27... Qf4+ $15 {[%emt 0:00:51]} 28. Be3 {[%emt 0:00:04]} Qf3 {[%emt 0:01:44]} (28... Qxc7 $2 29. Rxc7 Rxc7 30. Bf4 $18) (28... Qg3 $15 29. Ra7 Rf8) 29. Rxf7 $11 {[%emt 0:03:16]} Qxe2 {[%emt 0:00:37][%cal Re2e1]} 30. Rxg7+ {[%emt 0:00:04]} Kf8 $2 {[%emt 0:00:02][%mdl 8192]} (30... Kh8 $11 31. Rxh7+ Kg8 32. Rhg7+ Kh8 33. Rh7+ Kg8 34. Rhg7+ Kh8 35. Rh7+) 31. Bc5+ {[%emt 0:00:13]} Ke8 {[%emt 0:00:03]} 32. Rg8+ {[%emt 0:00:04][%mdl 64] Skewer.  Weighted Error Value: White=0.24 (precise) /Black=0.73} 1-0